Cogmind - Beta 15 @@@ ROGUE MODE // 2025.05.28 @ 13:24:57 Player: Epsilon 11 Result: Core destroyed Performance ------------- Evolutions (5) 2500 Regions Visited (18) 3600 Robots Destroyed (159) 795 Value Destroyed (6261) 6261 Prototype IDs (49) 980 Alien Tech Used (0) 0 Bonus (6332) 6332 TOTAL SCORE: 20468 Bonus ------- High Alert Combat Kills 675 Follower Combat Kills 3003 Network Hubs Disabled 400 Met Imprinter 300 Was Imprinted 300 MAIN.C Attacked Warlord 500 Warlord Defense Kills 748 Built Enhanced Grunts 300 A7 Reached Mainframe 300 Friendly Fire -194 Cogmind --------- Core Integrity 0/1000 Matter 223/300 Energy 50/515 System Corruption 1% Temperature Critical (708) Movement Core (1150) Ox22 Location -5/Warlord Parts ------- > --- POWER (2) -------- Angular Momentum Engine Neutrino Core > --- PROPULSION (3) --- Armored Medium Treads > --- UTILITY (9) ------ Medium Storage Unit Spectral Analyzer Makeshift Light Armor Plating Makeshift Light Armor Plating Makeshift Light Armor Plating Experimental Hacking Suite > --- WEAPON (3) ------- Wave Gun Variable Charge Gun Thermoblaster > --- INVENTORY (10) --- Neutrino Core Wave Gun Wave Gun Vortex Rifle Vortex Rifle Vortex Cannon Phasing Sabre Signal Generator Sapper Charge Peak State ------------ > --- POWER ------------ Antimatter Reactor Light Antimatter Reactor > --- PROPULSION ------- Armored Medium Treads Centrium Heavy Treads > --- UTILITY ---------- Improved Cooling System Large Storage Unit Advanced Terrain Scanner Experimental Terrain Scan Processor Advanced Target Analyzer Experimental Core Analyzer Experimental Armor Integrity Analyzer Advanced Particle Charger Centrium Medium Armor Plating > --- WEAPON ----------- Advanced Variable Charge Gun Advanced Plasma Cannon Advanced Plasma Cannon > --- INVENTORY -------- Armored Medium Treads Improved Cryofiber Web Zionite Biocell Spectral Analyzer Zionite Weapon Casing Centrium Medium Armor Plating Experimental Thermal Shield Advanced Shield Generator Experimental Hacking Suite System Restoration Module Hacking Drone Bay Disruptor Cannon Heavy Proton Cannon Precision Grenade Launcher Long-range Missile Launcher [Rating: 129] Favorites ----------- Power Angular Momentum Engine Engine Angular Momentum Engine Power Core Light Nuclear Core Reactor Light Antimatter Reactor Propulsion Armored Treads Treads Armored Treads Leg Makeshift Leg Wheel Armored Wheel Flight Unit Nuclear Pulse Thruster Utility Large Storage Unit Device Improved Cooling System Storage Large Storage Unit Processor Experimental Armor Integrity Analyzer Hackware Experimental Hacking Suite Protection Makeshift Light Armor Plating Weapon Heavy Ion Cannon Energy Gun Heavy Particle Gun Energy Cannon Heavy Ion Cannon Ballistic Gun Gauss Rifle Ballistic Cannon Mass Driver Launcher Grenade Launcher Special Weapon Plasma Cutter Build | -11 -10 -9 -9 -8 -7 -7 -7 -7 -6 -6 -6 -6 -6 -6 -5 -5 -5 -5 ------- Run | Yrd Mat Mat Sto Mat Fac Low Low Zio Pro Fac Ext Cet Arc Hub Fac Upp Upp War Slots Evolved 10 | . . 2 . 2 2 . . . . 2 . . . . 2 . . . Power 1 | . . . . 1 . . . . . . . . . . . . . . Propulsion 1 | . . . . . 1 . . . . . . . . . . . . . Utility 7 | . . 2 . . 1 . . . . 2 . . . . 2 . . . Weapon 1 | . . . . 1 . . . . . . . . . . . . . . Parts Attached 121 | 6 2 6 6 15 4 3 2 7 6 13 1 5 3 5 15 4 9 9 Power 16 | 1 . 1 1 3 . . . 1 3 1 . 1 . 2 . . 1 1 Engine 7 | 1 . 1 . . . . . 1 2 1 . . . . . . . 1 Core 5 | . . . . 3 . . . . 1 . . . . . . . 1 . Reactor 4 | . . . 1 . . . . . . . . 1 . 2 . . . . Propulsion 26 | 2 . 2 2 3 1 . . . 3 2 . 1 1 . 4 1 3 1 Treads 15 | . . . 2 . 1 . . . 3 2 . 1 . . 4 1 . 1 Leg 5 | . . 2 . . . . . . . . . . 1 . . . 2 . Wheel 5 | 2 . . . 3 . . . . . . . . . . . . . . Hover . | . . . . . . . . . . . . . . . . . . . Flight 1 | . . . . . . . . . . . . . . . . . 1 . Utility 50 | 1 1 2 2 6 3 1 2 5 . 6 1 2 2 2 6 2 2 4 Device 22 | . . 2 2 4 1 1 . . . 4 . . . 2 5 . 1 . Storage 6 | 1 1 . . . 1 . . . . . . 1 1 . . . 1 . Processor 7 | . . . . . . . 1 5 . . . . . . . 1 . . Hackware 2 | . . . . . . . . . . 1 . . . . . 1 . . Protection 13 | . . . . 2 1 . 1 . . 1 1 1 1 . 1 . . 4 Artifact . | . . . . . . . . . . . . . . . . . . . Weapon 29 | 2 1 1 1 3 . 2 . 1 . 4 . 1 . 1 5 1 3 3 Energy Gun 11 | 2 . 1 . 3 . 1 . . . . . 1 . . . . 1 2 Energy Cannon 7 | . . . . . . 1 . . . 3 . . . . 3 . . . Ballistic Gun 1 | . . . . . . . . . . . . . . . . . 1 . Ballistic Cannon 1 | . . . . . . . . . . . . . . . . . 1 . Launcher 7 | . 1 . 1 . . . . 1 . 1 . . . . 2 . . 1 Special Weapon 2 | . . . . . . . . . . . . . . 1 . 1 . . Impact Weapon . | . . . . . . . . . . . . . . . . . . . Slashing Weapon . | . . . . . . . . . . . . . . . . . . . Piercing Weapon . | . . . . . . . . . . . . . . . . . . . Special Melee Weapon . | . . . . . . . . . . . . . . . . . . . Unidentified Prototypes 22 | . . 1 1 2 . . . 5 . 1 . 4 3 1 2 2 . . Parts Lost 47 | . . 4 1 3 . 2 6 . . 3 . . . . 21 2 . 5 Power 8 | . . 2 . 1 . . 2 . . . . . . . 2 . . 1 Propulsion 11 | . . 2 . . . . 1 . . . . . . . 5 1 . 2 Utility 19 | . . . 1 1 . 1 2 . . 2 . . . . 10 . . 2 Weapon 9 | . . . . 1 . 1 1 . . 1 . . . . 4 1 . . Highest Loss Streak 10 | . . 4 1 1 . 2 6 . . 1 . . . . 10 2 . 3 To Critical Strikes 1 | . . . . . . . . . . . . . . . 1 . . . Average Backups 12 | 1 5 6 10 14 14 14 13 12 15 14 15 15 15 14 13 1 2 7 Power . | . 1 . . . . . . . . . 1 1 . . . . . 2 Propulsion 1 | . 2 1 4 5 4 4 4 3 1 . 1 1 1 . 1 . . . Utility 6 | . . 1 1 4 5 6 6 6 10 8 9 9 9 10 8 1 . . Weapon 3 | . 1 3 4 4 4 3 2 2 3 3 3 3 3 3 3 . 1 4 Tool/Special . | . . . . . . . . . . . . . . . . . . . Unused Backups 24 | . . . 1 3 1 . . 2 1 3 1 . . 1 1 . . 10 Power 2 | . . . . . . . . . . . . . . . . . . 2 Propulsion 3 | . . . . 1 . . . 1 1 . . . . . . . . . Utility 5 | . . . . . . . . 1 . 2 1 . . 1 . . . . Weapon 14 | . . . 1 2 1 . . . . 1 . . . . 1 . . 8 Tool/Special . | . . . . . . . . . . . . . . . . . . . Average Slot Usage (%) 88 | . 85 72 90 96 99 93 86 80 99 94 93 92 92 90 87 15 27 94 Engine 3 | . 14 5 . . . . . 4 9 7 6 6 6 . . . . 3 Core 2 | . . . . 8 15 15 10 . 4 . . . . . . . 1 5 Reactor 2 | . . . 8 7 . . . . . . . 4 6 10 9 . . . Treads 12 | . . . 15 2 22 23 20 10 10 20 20 14 12 13 10 1 . . Leg 2 | . . 10 5 . . . . . . . . . . . . . 3 10 Wheel 2 | . 28 10 . 15 . . . 9 11 . . . . . . . . . Device 10 | . . 14 27 18 19 8 13 5 . 6 8 6 1 6 15 . 2 10 Storage 6 | . 14 11 11 9 7 7 7 7 7 6 6 6 6 6 4 . 1 5 Processor 14 | . . . . . . . 2 12 30 26 26 26 26 26 22 4 5 5 Protection 6 | . . . . 7 9 15 7 5 . 5 3 6 10 6 5 . . 19 Energy Gun 10 | . 22 15 21 25 23 17 15 15 15 3 . 4 6 6 4 . 1 15 Energy Cannon 8 | . . . . . . 4 7 7 7 16 20 14 13 12 8 . . . Peak Build Rating 129 | 6 6 10 26 40 42 44 46 64 73 85 85 113 114 116 129 23 67 94 Average Rating 68 | 4 5 8 19 34 40 40 38 40 68 80 82 104 111 109 116 19 31 88 On Entrance 47 | . 6 6 8 25 34 41 44 31 64 73 82 81 110 111 108 2 17 67 Naked Turns 14 | . . . . . . . . . . . . . . . 14 . . . Heaviest Build 90 | 14 30 31 47 61 59 60 64 49 57 69 67 86 83 82 90 2 56 80 Greatest Support 108 | 20 20 20 46 46 69 69 69 46 68 68 68 108 108 108 107 3 40 40 Greatest Overweight (x) 9 | . 1 9 3 3 . . . 2 4 1 . . 1 1 1 . 1 1 Average Overweight (x) . | . . 1 . 1 . . . 1 1 . . . . . . . . 1 Largest Inventory Capacity 15 | 8 15 15 15 15 15 15 15 15 15 15 15 15 15 15 15 5 10 10 Average Capacity 13 | 7 9 15 15 15 15 15 15 15 15 15 15 15 15 15 14 5 6 10 Most Carried 15 | 4 6 8 13 15 15 15 15 15 15 15 15 15 15 15 15 4 6 10 Average Carried 12 | 1 5 6 10 14 14 14 13 12 14 14 14 14 14 14 13 1 2 8 Final Capacity 15 | 8 15 15 15 15 15 15 15 15 15 15 15 15 15 15 5 5 10 10 Final Carried 15 | 4 6 8 12 15 15 15 12 15 15 15 15 15 15 15 4 1 6 9 Class Distribution -------------------- 27% | Gunner 17% | Commander-Gunner 13% | Tank 11% | Mutant 10% | Derelict-Tank 10% | Scavenger-Gunner Dominant Class ---------------- Mutant | -10/Materials Mutant | -9/Materials Mutant | -9/Storage Tank | -8/Materials Tank | -7/Factory Tank | -7/Lower Caves Tank | -7/Lower Caves Gunner | -7/Zion Gunner | -6/Proximity Caves Gunner | -6/Factory Commander-Gunner | -6/Extension Commander-Gunner | -6/Cetus Commander-Gunner | -6/Archives Commander-Gunner | -6/Hub_04(d) Scavenger-Gunner | -5/Factory Mutant | -5/Upper Caves Mutant | -5/Upper Caves Derelict-Tank | -5/Warlord Resources | -11 -10 -9 -9 -8 -7 -7 -7 -7 -6 -6 -6 -6 -6 -6 -5 -5 -5 -5 ----------- Run | Yrd Mat Mat Sto Mat Fac Low Low Zio Pro Fac Ext Cet Arc Hub Fac Upp Upp War Matter Collected 2539 | 231 20 199 187 287 80 55 15 30 140 313 50 40 60 142 288 133 221 48 Remotely . | . . . . . . . . . . . . . . . . . . . Salvage Created 6907 | . 32 403 566 895 125 306 109 . 146 783 708 149 72 728 1336 . 274 275 Parts 311 | . 3 18 21 52 5 14 3 . 7 49 26 2 3 38 54 . 4 12 Haulers Intercepted 2 | . . . 1 1 . . . . . . . . . . . . . . Recyclers Shooed 9 | . . 2 1 . . . . . . 3 . . . 1 2 . . . Parts Field Recycled . | . . . . . . . . . . . . . . . . . . . Retrieved Matter . | . . . . . . . . . . . . . . . . . . . Parts Self-Destructed 35 | . . . . . . 14 4 . 13 . . . . . . . 4 . Prevented 12 | . . . . . . 4 . . 5 . . . . . . 3 . . Kills | -11 -10 -9 -9 -8 -7 -7 -7 -7 -6 -6 -6 -6 -6 -6 -5 -5 -5 -5 ------- Run | Yrd Mat Mat Sto Mat Fac Low Low Zio Pro Fac Ext Cet Arc Hub Fac Upp Upp War Combat Hostiles Destroyed 126 | . 3 9 8 21 2 7 1 . 3 18 11 1 1 10 25 . . 6 Guns 44 | . . 6 6 15 2 7 . . 3 2 . . 1 . 1 . . 1 Cannons 40 | . . . . . . . 1 . . 10 10 1 . 9 9 . . . AOE 34 | . 3 3 2 6 . . . . . 6 . . . . 11 . . 3 Classes Destroyed 20 | . 1 5 1 3 . . 1 . 1 1 2 . . 1 3 . . 1 Worker 13 | . . 1 1 2 . . . . . . . . . 5 4 . . . Builder 6 | . . . . . . . . . . 2 . . . . 4 . . . Hauler 2 | . . . 1 1 . . . . . . . . . . . . . . Recycler 5 | . . 1 3 . . . . . . . . . . . 1 . . . Mechanic 1 | . . . . . . . . . . . . . . . 1 . . . Operator 2 | . . . . . . . . . . . 1 . . 1 . . . . Drone 1 | . . . . 1 . . . . . . . . . . . . . . Watcher 3 | . . 2 . . . . . . . . . 1 . . . . . . Swarmer 26 | . 3 4 2 7 . 3 . . . 6 . . . . . . . 1 Saboteur 1 | . . . . . . . . . . . . . . . 1 . . . Grunt 44 | . . 3 3 7 . 3 . . 2 8 7 . . 1 9 . . 1 Brawler 3 | . . . . 1 . . . . . . 1 . . . . . . 1 Duelist 3 | . . . . . . . . . . . . . . 1 1 . . 1 Protector 1 | . . . . . . . . . . . . . . . 1 . . . Sentry 20 | . . 2 3 5 1 1 . . . 1 2 . 1 2 2 . . . Specialist 4 | . . . . . . . . . . . . . . 2 2 . . . Hunter 13 | . . . . 1 1 . . . . 2 . . . 3 5 . . 1 Programmer 7 | . . . . . . . . . 1 1 . . . 1 4 . . . Behemoth 1 | . . . . . . . 1 . . . . . . . . . . . Cetus Guard 1 | . . . . . . . . . . . . 1 . . . . . . Striker 1 | . . . . . . . . . . . . . . . . . . 1 Butcher 2 | . . . . . . . . . . . 1 1 . . . . . . Best Kill Streak 23 | . 3 10 4 6 1 3 1 . 1 6 3 1 1 4 23 . . 5 Combat Bots Only 15 | . 3 5 2 4 1 3 1 . 1 5 3 1 1 3 15 . . 5 Max Kills in Single Turn 7 | . 2 3 2 3 1 2 1 . 1 4 2 1 1 2 7 . . 2 Gunslinging 1 | . . . . . . 1 . . . . . . . . . . . . Exploded 6 | . 2 2 1 3 . . . . . 3 . . . . 6 . . 1 Melee . | . . . . . . . . . . . . . . . . . . . Uniques/NPCs Destroyed . | . . . . . . . . . . . . . . . . . . . Combat | -11 -10 -9 -9 -8 -7 -7 -7 -7 -6 -6 -6 -6 -6 -6 -5 -5 -5 -5 -------- Run | Yrd Mat Mat Sto Mat Fac Low Low Zio Pro Fac Ext Cet Arc Hub Fac Upp Upp War Hostile Shots Fired 1077 | . 8 75 28 64 44 50 58 . 10 95 77 6 6 83 365 13 . 95 Missed 327 | . 4 22 6 18 20 19 16 . 5 29 26 2 1 21 113 4 . 21 Hits 750 | . 4 53 22 46 24 31 42 . 5 66 51 4 5 62 252 9 . 74 Melee 11 | . . . . . . . . . . . . . . 2 . . . 9 Projectile 739 | . 4 53 22 46 24 31 42 . 5 66 51 4 5 60 252 9 . 65 AOE 1 | . . . . . . . . . . . . . . . 1 . . . Critical Strikes 25 | . . 2 . 1 . . 2 . . 2 . 3 . 1 9 1 . 4 Part Disruptions 2 | . . . . . . . . . . . . . . 1 1 . . . Damage Taken 11466 | . 33 698 259 920 166 285 781 . 96 974 494 82 153 944 4070 128 . 1383 Core 1852 | . 15 215 76 52 6 31 56 . . 187 76 . . 95 674 80 . 289 Absorbed by Shields 962 | . . . . 57 70 112 . . . 28 55 50 . . 297 . . 293 Redirected to Shielding 230 | . . . . . 38 33 . . . 38 . . . . 121 . . . Ignored by Resistances 321 | . . . . . . . . . . . . . . . 321 . . . Regen/Repaired (Parts) 231 | . . 83 135 . . . . . . . . . . . . . . 13 Core Remaining (%) 75 | 100 94 . 27 90 . . . . 86 . . . . 57 . . . . Volleys Fired 327 | . 5 32 23 43 7 14 11 1 7 44 20 6 6 28 41 . 20 19 Largest 3 | . 2 2 2 3 3 3 3 1 3 3 3 3 3 3 3 . 1 3 Hottest 416 | . 100 106 106 155 155 185 195 65 195 221 215 215 230 230 276 . 28 416 Shots Fired 737 | . 8 64 48 107 20 37 28 1 20 96 58 18 16 68 87 . 19 42 Gun 410 | . 6 58 46 100 20 35 18 . 13 19 . . 4 21 18 . 19 33 Cannon 289 | . . . . . . 2 10 1 7 74 58 18 12 47 60 . . . Launcher 38 | . 2 6 2 7 . . . . . 3 . . . . 9 . . 9 Special . | . . . . . . . . . . . . . . . . . . . Kinetic 19 | . . . . . . . . . . . . . . . . . 19 . Thermal 637 | . 6 58 46 68 14 29 28 1 20 87 58 18 16 68 78 . . 42 Explosive 29 | . 2 6 2 7 . . . . . 3 . . . . 9 . . . Electromagnetic 52 | . . . . 32 6 8 . . . 6 . . . . . . . . Robot Hit Streak 20 | . 2 13 12 11 6 8 13 . 10 12 12 11 6 8 8 . 18 20 Robot Miss Streak 6 | . 2 2 5 6 2 4 2 . 3 5 3 3 1 3 4 . 1 3 Penetration Max 1 | . . . . . . . . . . . . . . . . . 1 . Secondary Targets 5 | . . 1 . 1 . 3 . . . . . . . . . . . . Max Gunslinging Chain 1 | . . 1 . 1 . 1 . . . . . . . . . . . . Shots Hit Robots 453 | . 4 41 28 63 12 25 22 . 13 54 37 11 11 41 44 . 18 29 Core Hits 352 | . 3 19 19 42 6 17 12 . 18 64 21 5 5 24 73 . 6 18 Critical Kills 3 | . . . . . . . . . . . 1 . . . 2 . . . Critical Parts Destroyed . | . . . . . . . . . . . . . . . . . . . Critical Strikes 13 | . . 3 3 1 . . . . . 1 1 . . . 2 . . 2 Burn 9 | . . 3 3 1 . . . . . . . . . . . . . 2 Meltdown 3 | . . . . . . . . . . . 1 . . . 2 . . . Corrupt 1 | . . . . . . . . . . 1 . . . . . . . . Melee Attacks . | . . . . . . . . . . . . . . . . . . . Impact . | . . . . . . . . . . . . . . . . . . . Slashing . | . . . . . . . . . . . . . . . . . . . Piercing . | . . . . . . . . . . . . . . . . . . . Sneak Attacks . | . . . . . . . . . . . . . . . . . . . Combat Hostiles . | . . . . . . . . . . . . . . . . . . . Follow-up Attacks . | . . . . . . . . . . . . . . . . . . . Damage Inflicted 16891 | . 139 935 638 1678 318 431 600 . 340 1886 1211 366 333 1296 4561 . 399 1760 Guns 5900 | . 39 616 424 1018 242 431 368 . 251 427 . . 100 415 457 . 399 713 Cannons 5219 | . . . . . . . 232 . 89 1005 1211 366 233 848 1235 . . . Explosions 5682 | . 100 319 214 660 76 . . . . 420 . . . . 2846 . . 1047 Melee . | . . . . . . . . . . . . . . . . . . . Ramming 90 | . . . . . . . . . . 34 . . . 33 23 . . . Kinetic 399 | . . . . . . . . . . . . . . . . . 399 . Thermal 11192 | . 39 616 424 643 211 320 600 . 340 1374 1211 366 333 1263 1692 . . 1760 Explosive 4496 | . 100 319 214 597 . . . . . 420 . . . . 2846 . . . Electromagnetic 714 | . . . . 438 107 111 . . . 58 . . . . . . . . Impact . | . . . . . . . . . . . . . . . . . . . Slashing . | . . . . . . . . . . . . . . . . . . . Piercing . | . . . . . . . . . . . . . . . . . . . Highest Corruption 6 | . 1 6 6 . . . . . . . . . . 2 5 5 5 5 Average Corruption 4 | . 1 4 6 . . . . . . . . . . 1 3 5 5 3 Corruption Purged 4 | . . . . . . . . . . . . . . . 4 . . . Corruption Blocked . | . . . . . . . . . . . . . . . . . . . Effects 56 | . . 9 27 . . . . . . . . . . 2 8 3 4 3 Message Errors 12 | . . 3 6 . . . . . . . . . . . 1 . 1 1 Matter Fused 17 | . . 1 8 . . . . . . . . . . 2 3 1 1 1 Heat Flow Errors 8 | . . 1 5 . . . . . . . . . . . 1 . 1 . Energy Discharges 2 | . . . 1 . . . . . . . . . . . . . . 1 Parts Rejected 2 | . . 1 . . . . . . . . . . . . 1 . . . Parts Fused 1 | . . . 1 . . . . . . . . . . . . . . . Data Loss (minor) 5 | . . . 3 . . . . . . . . . . . 2 . . . Data Loss (major) 2 | . . . . . . . . . . . . . . . . 2 . . Misfires 6 | . . 3 3 . . . . . . . . . . . . . . . Weapon Failures 1 | . . . . . . . . . . . . . . . . . 1 . Overload Shots . | . . . . . . . . . . . . . . . . . . . Overflow Damage 332 | . 23 24 . 32 11 . . . . 3 3 . . 2 126 . . 108 Projectiles 64 | . . . . . . . . . . 3 3 . . . 58 . . . Explosions 266 | . 23 24 . 32 11 . . . . . . . . . 68 . . 108 Melee 2 | . . . . . . . . . . . . . . 2 . . . . Knockbacks 2 | . . . . . . . . . . 2 . . . . . . . . Impact 2 | . . . . . . . . . . 2 . . . . . . . . Kinetic . | . . . . . . . . . . . . . . . . . . . Secondary . | . . . . . . . . . . . . . . . . . . . Self-Inflicted Damage 179 | . . 26 . 150 . . . . . . . . . . 3 . . . Shots 4 | . . 1 . 3 . . . . . . . . . . . . . . Rammed 14 | . . . . . . . . . . 7 . . . 2 5 . . . Targets Rammed 16 | . . . . . . . . . . 7 . . . 3 6 . . . Kicked . | . . . . . . . . . . . . . . . . . . . Crushed 2 | . . . . . . . . . . . . . . 1 1 . . . Highest Temperature 708 | . 78 368 218 480 93 264 283 8 420 482 266 129 306 477 462 . 162 708 Average Temperature 128 | . 37 161 73 134 36 113 91 6 138 94 62 54 100 139 179 . 82 214 Received Heat Transfer 2619 | . . 201 93 201 32 92 406 . 45 223 192 . 27 96 955 36 . 20 Effects 28 | . . . . 2 . . . . 1 2 . . . 5 12 . . 6 Shutdowns 10 | . . . . 1 . . . . . 1 . . . 1 5 . . 2 Energy Bleed 6 | . . . . . . . . . . 1 . . . 1 2 . . 2 Interference 4 | . . . . . . . . . . . . . . 1 3 . . . Matter Decay 1 | . . . . . . . . . . . . . . . 1 . . . Short Circuit 2 | . . . . . . . . . 1 . . . . . . . . 1 Damage (minor) 3 | . . . . . . . . . . . . . . 2 1 . . . Damage (major) 1 | . . . . 1 . . . . . . . . . . . . . . Damage (core) 1 | . . . . . . . . . . . . . . . . . . 1 Siege Activations . | . . . . . . . . . . . . . . . . . . . Martial Activations . | . . . . . . . . . . . . . . . . . . . Shielding Activations . | . . . . . . . . . . . . . . . . . . . Robots Disrupted . | . . . . . . . . . . . . . . . . . . . Combat Hostiles . | . . . . . . . . . . . . . . . . . . . Robots Corrupted 1 | . . . . . . . . . . . . . . 1 . . . . Combat Hostiles . | . . . . . . . . . . . . . . . . . . . Parts Fried 2 | . . . . 1 . . . . . . . . . 1 . . . . Impact Corruptions 1 | . . . . . . . . . . . . . . 1 . . . . Robots Melted 8 | . . . . . . . . . . . 1 . . 1 4 . . 2 Combat Hostiles 8 | . . . . . . . . . . . 1 . . 1 4 . . 2 Parts Melted 38 | . . 5 6 3 . 1 . . 1 1 3 . 2 2 10 . . 4 Heat Transferred 16787 | . 111 1813 1295 1432 359 590 740 . 436 1645 1591 481 407 1628 1956 . . 2303 Parts Sabotaged . | . . . . . . . . . . . . . . . . . . . Parts Stolen . | . . . . . . . . . . . . . . . . . . . Parts Stripped . | . . . . . . . . . . . . . . . . . . . Power Chain Reactions 3 | . . . . 2 1 . . . . . . . . . . . . . Alert | -11 -10 -9 -9 -8 -7 -7 -7 -7 -6 -6 -6 -6 -6 -6 -5 -5 -5 -5 ------- Run | Yrd Mat Mat Sto Mat Fac Low Low Zio Pro Fac Ext Cet Arc Hub Fac Upp Upp War Maximum Alert Level 3 | . . . 2 2 . . . . . 2 3 2 1 3 2 . . . Low Security (%) 32 | 100 100 100 31 7 100 . . . . 37 . . 5 56 . . . . Level 1 34 | . . . 39 84 . . . . . 3 68 . 94 16 59 . . . Level 2 29 | . . . 28 7 . . . . . 58 29 100 . 3 40 . . . Level 3 3 | . . . . . . . . . . . 1 . . 24 . . . . Level 4 . | . . . . . . . . . . . . . . . . . . . Level 5 . | . . . . . . . . . . . . . . . . . . . High Security . | . . . . . . . . . . . . . . . . . . . Max Security . | . . . . . . . . . . . . . . . . . . . Peak Influence 1018 | . 88 177 526 439 146 . . . . 624 1018 684 316 943 661 . . . Initial 569 | . . 28 37 199 144 . . . . 44 252 569 217 93 462 . . . Average 314 | . 32 89 291 300 89 . . . . 318 365 609 277 322 398 . . . Influence Increases 8244 | . 98 292 957 654 135 160 35 . 290 1188 1472 184 179 1577 809 60 10 144 Destroy 0b10 Robot/C 4200 | . 60 180 500 420 40 140 20 . 200 620 660 80 80 580 480 . . 140 Destroy 0b10 Robot/NC 285 | . . 20 45 15 . . 5 . . 35 45 5 . 50 55 . 10 . Destroy Leader 828 | . 10 54 126 112 20 20 10 . 20 148 74 . . 154 80 . . . Allied During Kill 1776 | . . . 215 3 . . . . 70 88 620 85 80 611 . . . 4 Trap Triggered on 0b10 20 | . . . . . . . . . . . . . . 20 . . . . Successful Hack 197 | . . 4 37 5 56 . . . . 76 . 9 . . 10 . . . Disable Machine 315 | . 15 . 15 30 15 . . . . 135 . . 15 90 . . . . Destroy Structure 413 | . 13 34 19 39 4 . . . . 86 28 5 4 57 124 . . . Lose Combat Pursuer 210 | . . . . 30 . . . . . . 45 . . 15 60 60 . . Influence Decreases 8169 | . 30 271 573 810 395 217 35 . 218 744 970 659 456 900 1221 308 205 157 Entered New Map 2623 | . . 40 52 274 173 22 . . . 28 264 449 326 173 481 198 55 88 Time Decay 3996 | . 30 191 351 326 222 165 35 . 158 546 546 170 70 467 470 90 150 9 Lost Part 380 | . . 40 10 30 . 20 . . . 20 . . . . 210 20 . 30 Lost Ally 870 | . . . 160 30 . 10 . . 60 . 160 40 60 260 60 . . 30 Purge Threat 300 | . . . . 150 . . . . . 150 . . . . . . . . Squads Dispatched 38 | . 1 2 4 2 1 . . . 1 6 4 . . 9 8 . . . Investigation 6 | . . . 1 . 1 . . . 1 1 1 . . 1 . . . . Extermination 8 | . . . . . . . . . . 3 . . . 2 3 . . . Reinforcement 18 | . 1 2 2 2 . . . . . 2 2 . . 5 2 . . . Assault 4 | . . . . . . . . . . . 1 . . 1 2 . . . Garrison 2 | . . . 1 . . . . . . . . . . . 1 . . . Intercept . | . . . . . . . . . . . . . . . . . . . Searches Triggered . | . . . . . . . . . . . . . . . . . . . Construction Impeded 4 | . . . . . . . . . . . 2 . . 1 1 . . . Haulers Reinforced 2 | . . . . . . . . . . 2 . . . . . . . . Active Scanning Responses . | . . . . . . . . . . . . . . . . . . . Cargo Convoy Interrupts 1 | . . . . . . . . . . . . . . . 1 . . . Stealth | -11 -10 -9 -9 -8 -7 -7 -7 -7 -6 -6 -6 -6 -6 -6 -5 -5 -5 -5 --------- Run | Yrd Mat Mat Sto Mat Fac Low Low Zio Pro Fac Ext Cet Arc Hub Fac Upp Upp War Distress Signals 20 | . . 4 4 . 1 . . . . 2 2 1 . 3 2 . . 1 Communications Jammed . | . . . . . . . . . . . . . . . . . . . Distress Signals . | . . . . . . . . . . . . . . . . . . . Times Spotted 264 | . 5 19 21 27 4 7 1 . 8 39 35 5 4 22 45 5 . 17 Peak Tracking Total 14 | . 3 7 3 6 3 3 1 . 4 7 7 5 2 4 14 4 . 11 Tactical Retreats 7 | . . . . 1 . . . . . . 2 . . 1 2 1 . . Traps | -11 -10 -9 -9 -8 -7 -7 -7 -7 -6 -6 -6 -6 -6 -6 -5 -5 -5 -5 ------- Run | Yrd Mat Mat Sto Mat Fac Low Low Zio Pro Fac Ext Cet Arc Hub Fac Upp Upp War Traps Triggered 13 | . 1 4 2 2 . . . . . . . . . 3 1 . . . Indirectly . | . . . . . . . . . . . . . . . . . . . Trap Hack Attempts . | . . . . . . . . . . . . . . . . . . . Triggered . | . . . . . . . . . . . . . . . . . . . Disarmed . | . . . . . . . . . . . . . . . . . . . Reprogrammed . | . . . . . . . . . . . . . . . . . . . Reused 3 | . . . . . . . . . . . . . . 2 . 1 . . Traps Extracted . | . . . . . . . . . . . . . . . . . . . Installed 8 | . . . . . . . . . . . . . . 5 . 3 . . Triggered 3 | . . . . . . . . . . . . . . 2 . 1 . . Most Traps Carried 1 | . . . . . . . . . . . . . . 1 . 1 . . Machines | -11 -10 -9 -9 -8 -7 -7 -7 -7 -6 -6 -6 -6 -6 -6 -5 -5 -5 -5 ---------- Run | Yrd Mat Mat Sto Mat Fac Low Low Zio Pro Fac Ext Cet Arc Hub Fac Upp Upp War Machines Disabled 23 | . 1 . 1 2 1 . . . . 9 2 . 1 6 . . . . Max in Single Turn 4 | . 1 . 1 1 1 . . . . 4 1 . 1 2 . . . . Garrison Access 3 | . . . 1 . . . . . . . . . . 1 1 . . . Network Hub 2 | . . . . . . . . . . . . . . 2 . . . . Energy Cycler 2 | . . . . . . . . . . . 2 . . . . . . . Machines Repaired . | . . . . . . . . . . . . . . . . . . . Machines Dismantled 1 | . . . . . . . . . . . . . . 1 . . . . Machines Sabotaged . | . . . . . . . . . . . . . . . . . . . Overloaded Fab Kills . | . . . . . . . . . . . . . . . . . . . Hacking | -11 -10 -9 -9 -8 -7 -7 -7 -7 -6 -6 -6 -6 -6 -6 -5 -5 -5 -5 --------- Run | Yrd Mat Mat Sto Mat Fac Low Low Zio Pro Fac Ext Cet Arc Hub Fac Upp Upp War Machines Accessed 43 | . 2 6 12 4 5 . . . 1 5 . 1 . 2 2 . . 3 Terminals 21 | . 1 2 9 4 3 . . . 1 . . 1 . . . . . . Fabricators 2 | . . . . . . . . . . 2 . . . . . . . . Repair Stations 6 | . . 2 2 . . . . . . 1 . . . . 1 . . . Recycling Units 5 | . 1 1 . . . . . . . 2 . . . . 1 . . . Scanalyzers 3 | . . 1 . . 2 . . . . . . . . . . . . . Garrison Access 3 | . . . 1 . . . . . . . . . . 2 . . . . Total Hacks 124 | . 4 17 35 13 16 . . . 4 14 . 1 . 2 7 . . 11 Successful 79 | . 3 11 22 7 9 . . . 4 7 . 1 . 1 3 . . 11 Failed 45 | . 1 6 13 6 7 . . . . 7 . . . 1 4 . . . Catastrophic 8 | . . 1 . . 3 . . . . 2 . . . 1 1 . . . Database Lockouts . | . . . . . . . . . . . . . . . . . . . Manual 143 | . 3 12 14 10 9 . . . . 34 14 1 . 26 20 . . . Terminals 64 | . 3 6 25 13 12 . . . 4 . . 1 . . . . . . Fabricators 6 | . . . . . . . . . . 6 . . . . . . . . Repair Stations 21 | . . 4 8 . . . . . . 4 . . . . 5 . . . Recycling Units 12 | . 1 5 . . . . . . . 4 . . . . 2 . . . Scanalyzers 6 | . . 2 . . 4 . . . . . . . . . . . . . Garrison Access 4 | . . . 2 . . . . . . . . . . 2 . . . . Terminal Hacks 25 | . . . 6 2 1 . . . 4 . . 1 . . . . . 11 Record 4 | . . . . . . . . . 4 . . . . . . . . . Prototype ID Bank 11 | . . . . 1 . . . . . . . . . . . . . 10 Open Door 6 | . . . 4 . . . . . . . . 1 . . . . . 1 Branch Access Points 1 | . . . . . 1 . . . . . . . . . . . . . Terminal Index 1 | . . . 1 . . . . . . . . . . . . . . . Unreport Threat 1 | . . . . 1 . . . . . . . . . . . . . . Hauler Manifests 1 | . . . 1 . . . . . . . . . . . . . . . Fabricator Hacks 3 | . . . . . . . . . . 3 . . . . . . . . Load Schematic 1 | . . . . . . . . . . 1 . . . . . . . . Build 2 | . . . . . . . . . . 2 . . . . . . . . Repair Station Hacks 11 | . . 2 6 . . . . . . 2 . . . . 1 . . . Scan Component 7 | . . 1 3 . . . . . . 2 . . . . 1 . . . Repair 4 | . . 1 3 . . . . . . . . . . . . . . . Recycling Unit Hacks 2 | . 1 1 . . . . . . . . . . . . . . . . Report Inventory 2 | . 1 1 . . . . . . . . . . . . . . . . Scanalyzer 3 | . . . . . 3 . . . . . . . . . . . . . Insert Component 2 | . . . . . 2 . . . . . . . . . . . . . Analyze 1 | . . . . . 1 . . . . . . . . . . . . . Garrison Access Hacks 2 | . . . 1 . . . . . . . . . . 1 . . . . Seal Access 2 | . . . 1 . . . . . . . . . . 1 . . . . Unauthorized Hacks 33 | . 2 8 9 5 5 . . . . 2 . . . . 2 . . . Terminals 24 | . 2 3 9 5 5 . . . . . . . . . . . . . Botnet 9 | . 1 1 3 2 2 . . . . . . . . . . . . . Operators 1 | . . . 1 . . . . . . . . . . . . . . . Skim 14 | . 1 2 5 3 3 . . . . . . . . . . . . . Fabricators 1 | . . . . . . . . . . 1 . . . . . . . . Prioritize 1 | . . . . . . . . . . 1 . . . . . . . . Repair Stations 1 | . . 1 . . . . . . . . . . . . . . . . Mechanics 1 | . . 1 . . . . . . . . . . . . . . . . Recycling Units 7 | . . 4 . . . . . . . 1 . . . . 2 . . . Monitor 2 | . . 1 . . . . . . . . . . . . 1 . . . Reject 1 | . . 1 . . . . . . . . . . . . . . . . Recyclers 3 | . . 1 . . . . . . . 1 . . . . 1 . . . Mask 1 | . . 1 . . . . . . . . . . . . . . . . Scanalyzers . | . . . . . . . . . . . . . . . . . . . Garrison Access . | . . . . . . . . . . . . . . . . . . . Data Cores Recovered 1 | . . . . . . . . . . . 1 . . . . . . . Used . | . . . . . . . . . . . . . . . . . . . Hacking Detections 33 | . 1 6 8 4 5 . . . 1 5 . . . 1 2 . . . Full Trace Events 2 | . . . . . 1 . . . 1 . . . . . . . . . Feedback Events . | . . . . . . . . . . . . . . . . . . . Feedback Blocked . | . . . . . . . . . . . . . . . . . . . Robot Schematics Acquired 9 | . . . . . . . . 3 . 6 . . . . . . . . Robots Built 2 | . . . . . . . . . . 2 . . . . . . . . Authchips 1 | . . . . . . . . . . 1 . . . . . . . . Time 51 | . . . . . . . . . . 51 . . . . . . . . Total Robot Build Rating 16 | . . . . . . . . . . 16 . . . . . . . . Part Schematics Acquired 53 | . . . . . 1 . . 15 . 24 . . . 13 . . . . Parts Built 2 | . . . . . . . . . . 2 . . . . . . . . Authchips . | . . . . . . . . . . . . . . . . . . . Time 53 | . . . . . . . . . . 53 . . . . . . . . Total Part Build Rating 12 | . . . . . . . . . . 12 . . . . . . . . Parts Repaired 4 | . . 1 3 . . . . . . . . . . . . . . . Time 141 | . . 51 90 . . . . . . . . . . . . . . . Parts Recycled . | . . . . . . . . . . . . . . . . . . . Recycled Matter . | . . . . . . . . . . . . . . . . . . . Retrieved Matter . | . . . . . . . . . . . . . . . . . . . Retrieved Components . | . . . . . . . . . . . . . . . . . . . Parts Scanalyzed 2 | . . . . . 2 . . . . . . . . . . . . . Part Schematics Acquired 1 | . . . . . 1 . . . . . . . . . . . . . Parts Damaged . | . . . . . . . . . . . . . . . . . . . Bothacking | -11 -10 -9 -9 -8 -7 -7 -7 -7 -6 -6 -6 -6 -6 -6 -5 -5 -5 -5 ------------ Run | Yrd Mat Mat Sto Mat Fac Low Low Zio Pro Fac Ext Cet Arc Hub Fac Upp Upp War Used RIF Installer . | . . . . . . . . . . . . . . . . . . . Robots Hacked . | . . . . . . . . . . . . . . . . . . . Non-combat . | . . . . . . . . . . . . . . . . . . . Combat . | . . . . . . . . . . . . . . . . . . . Robot Hacks Applied . | . . . . . . . . . . . . . . . . . . . Relay Couplers Released 1 | . . . . . . . . . . . . . . . 1 . . . Machine Destruction 1 | . . . . . . . . . . . . . . . 1 . . . Fabnet Peak Effective % . | . . . . . . . . . . . . . . . . . . . Robots Rewired 17 | . . . . . . . . . . . 12 . . . . . . 5 Allies Hacked . | . . . . . . . . . . . . . . . . . . . Hacks Repelled . | . . . . . . . . . . . . . . . . . . . Allies | -11 -10 -9 -9 -8 -7 -7 -7 -7 -6 -6 -6 -6 -6 -6 -5 -5 -5 -5 -------- Run | Yrd Mat Mat Sto Mat Fac Low Low Zio Pro Fac Ext Cet Arc Hub Fac Upp Upp War Total Allies 59 | . . . 10 . . . . 9 . 4 20 5 . 3 3 . . 5 Largest Group 20 | . . . 10 1 . . . 9 7 3 20 17 16 15 2 . . 5 Highest-Rated Group 1094 | . . . 88 7 . . . 276 248 201 897 1094 1063 946 56 . . 305 Highest-Rated Ally 159 | . . . 16 7 . . . 51 51 85 159 159 159 96 28 . . 64 Zionite Dispatches 6 | . . . . . . . . . . 1 2 . . 2 1 . . . Heavy 3 | . . . . . . . . . . 1 1 . . 1 . . . . Fire 1 | . . . . . . . . . . . . . . . 1 . . . Demo 1 | . . . . . . . . . . . 1 . . . . . . . Trap Resupply 1 | . . . . . . . . . . . . . . 1 . . . . Total Orders 48 | . . . 4 7 4 3 1 . . 7 6 1 . 10 1 . . 4 STAY 4 | . . . . . . . . . . . 1 . . 3 . . . . ROAM 3 | . . . . . 1 1 . . . 1 . . . . . . . . FOLLOW 5 | . . . . . . . . . . 1 1 . . 3 . . . . GUARD 3 | . . . . . . . . . . . 2 1 . . . . . . AID 4 | . . . . . . . . . . . . . . . . . . 4 DROP 1 | . . . . . . . . . . . . . . 1 . . . . PICKUP 2 | . . . . . . . . . . . . . . 2 . . . . EXPLORE 13 | . . . 4 5 1 1 1 . . 1 . . . . . . . . RETURN 13 | . . . . 2 2 1 . . . 4 2 . . 1 1 . . . Ally Attacks 520 | . . . 124 5 . . . . 28 50 147 25 22 104 2 . . 13 Total Damage 14930 | . . . 1013 23 . . . . 618 2510 4952 917 1016 3334 34 . . 513 Kills 108 | . . . 21 . . . . . 7 18 30 3 3 25 . . . 1 Allies Corrupted . | . . . . . . . . . . . . . . . . . . . Allies Melted . | . . . . . . . . . . . . . . . . . . . Intel | -11 -10 -9 -9 -8 -7 -7 -7 -7 -6 -6 -6 -6 -6 -6 -5 -5 -5 -5 ------- Run | Yrd Mat Mat Sto Mat Fac Low Low Zio Pro Fac Ext Cet Arc Hub Fac Upp Upp War Active Infowar (turns) 7200 | . . 454 895 116 . 22 492 . . 871 275 . 1 857 819 183 314 1901 Optics 2398 | . . . . . . . . . . . . . . . . 183 314 1901 Terrain 2823 | . . . . . . . . . . 871 275 . 1 857 819 . . . Structural 924 | . . 454 470 . . . . . . . . . . . . . . . Seismic 666 | . . . 550 116 . . . . . . . . . . . . . . Jamming 514 | . . . . . . 22 492 . . . . . . . . . . . Robot Analysis Total . | . . . . . . . . . . . . . . . . . . . Derelict Logs Recovered 8 | . . . . . . 1 3 1 1 . . . . . . 1 1 . Drone Launches 23 | . . . 4 6 2 2 1 . . 4 2 . . 1 1 . . . Drone Recoveries 19 | . . . 4 4 2 1 . . . 4 2 . . 1 1 . . . Zionite Intel Received 16 | . . . . . . . . . . 7 2 . . 4 3 . . . Main Access 1 | . . . . . . . . . . . . . . . 1 . . . Emergency Access 2 | . . . . . . . . . . 1 . . . 1 . . . . Guard Positions 1 | . . . . . . . . . . . . . . 1 . . . . Component Stockpiles 1 | . . . . . . . . . . 1 . . . . . . . . Component Schematics 2 | . . . . . . . . . . 1 . . . 1 . . . . Prototype Schematics 1 | . . . . . . . . . . 1 . . . . . . . . Unaware Schematics 2 | . . . . . . . . . . 2 . . . . . . . . Unaware Analyses 2 | . . . . . . . . . . . 1 . . . 1 . . . Trap Installations 3 | . . . . . . . . . . 1 1 . . . 1 . . . Active Garrisons 1 | . . . . . . . . . . . . . . 1 . . . . Exploration | -11 -10 -9 -9 -8 -7 -7 -7 -7 -6 -6 -6 -6 -6 -6 -5 -5 -5 -5 ------------- Run | Yrd Mat Mat Sto Mat Fac Low Low Zio Pro Fac Ext Cet Arc Hub Fac Upp Upp War Turns Passed 14857 | 53 131 475 895 739 479 472 730 1373 419 1952 1575 358 153 1459 1194 184 314 1902 Spaces Moved 8139 | 52 135 242 395 356 273 255 418 1005 294 874 740 143 62 687 680 311 363 854 Core 785 | 3 . 1 . . . . . . . . . . . . 151 311 319 . Treads 4644 | . . . 281 22 273 255 418 308 52 874 740 143 62 687 529 . . . Legs 1090 | . . 78 114 . . . . . . . . . . . . . 44 854 Wheels 1620 | 49 135 163 . 334 . . . 697 242 . . . . . . . . . Hover . | . . . . . . . . . . . . . . . . . . . Flight . | . . . . . . . . . . . . . . . . . . . Fastest Speed 50 | 50 80 95 160 105 160 160 160 105 105 166 166 160 160 160 50 50 50 210 Average Speed 149 | 78 83 128 169 127 160 160 160 130 130 170 166 161 162 164 140 50 69 210 Slowest Speed 500 | 80 95 500 330 240 160 160 160 240 245 246 166 166 240 240 250 50 210 210 Overloaded Moves . | . . . . . . . . . . . . . . . . . . . Propulsion Burnouts . | . . . . . . . . . . . . . . . . . . . Robots Hopped 2 | . . . 1 . . . . 1 . . . . . . . . . . Potential Cave-ins 1 | . . . . . . . . . . . . . . . . . . 1 Cave-ins Triggered . | . . . . . . . . . . . . . . . . . . . Exploration Rate (%) 53 | 4 30 34 62 55 11 52 76 87 55 30 87 64 72 52 21 68 62 86 Regions Visited 18 Branch Regions 12 Pre-discovered Areas 2 | . . . 1 . . . . 1 . . . . . . . . . . Known Exits Taken 7 | . . . 1 1 1 1 . . 1 1 . . . 1 . . . . Unknown Exits Taken 11 | 1 1 1 . . . . 1 1 . . 1 1 1 . 1 1 1 . Scrap Searched 13 | . . . . . . 6 . 5 1 . . . . . . . 1 . Spaces Dug 36 | . . . 11 . . 1 . . . 10 . . . 3 11 . . . Terrain Destroyed 301 | . 13 39 17 34 3 1 . . 2 68 9 4 1 16 74 . . 20 Melee . | . . . . . . . . . . . . . . . . . . . Projectile 77 | . . . . . . 1 . . 2 14 9 4 1 16 24 . . 6 AOE 224 | . 13 39 17 34 3 . . . . 54 . . . . 50 . . 14 Terrain Rammed . | . . . . . . . . . . . . . . . . . . . Walls Destroyed . | . . . . . . . . . . . . . . . . . . . Machines Disabled . | . . . . . . . . . . . . . . . . . . . Actions | -11 -10 -9 -9 -8 -7 -7 -7 -7 -6 -6 -6 -6 -6 -6 -5 -5 -5 -5 --------- Run | Yrd Mat Mat Sto Mat Fac Low Low Zio Pro Fac Ext Cet Arc Hub Fac Upp Upp War Total 10205 | 61 144 343 570 559 299 288 457 1066 315 1247 1041 257 102 948 835 339 400 934 Wait 1116 | . . 52 128 119 6 13 24 35 2 271 85 97 23 197 47 16 . 1 Move 8117 | 51 134 241 392 355 272 254 417 1002 293 873 739 142 61 686 679 310 362 854 Hop 2 | . . . 1 . . . . 1 . . . . . . . . . . Pick Up 90 | 4 2 5 8 11 4 1 . 7 1 12 1 1 1 6 9 3 6 8 Fast Attach 82 | 6 1 7 10 7 1 1 . 6 4 2 . 4 4 4 8 1 9 7 Attach 46 | . . 3 2 4 2 1 3 2 . 7 . . . . 13 3 2 4 Detach 13 | . . 1 . . . . . 2 . 1 . . 1 . 2 . 1 5 Swap 79 | . 1 1 2 7 4 4 1 3 2 21 5 2 1 9 15 . . 1 Drop 87 | . 1 1 4 13 3 . 1 7 6 9 1 5 5 7 14 3 . 7 Fire 327 | . 5 32 23 43 7 14 11 1 7 44 20 6 6 28 41 . 20 19 Melee . | . . . . . . . . . . . . . . . . . . . Ram 1 | . . . . . . . . . . . . . . . 1 . . . Kick . | . . . . . . . . . . . . . . . . . . . Crush 15 | . . . . . . . . . . 7 . . . 3 5 . . . Escape Stasis . | . . . . . . . . . . . . . . . . . . . Rewire 218 | . . . . . . . . . . . 190 . . . . . . 28 Trap 8 | . . . . . . . . . . . . . . 5 . 3 . . Miscellaneous 4 | . . . . . . . . . . . . . . 3 1 . . . Route ------- -11/Scrapyard -10/Materials -9/Materials -9/Storage -8/Materials (discovered 3 exits: *Fac x3) -7/Factory (discovered 2 exits: *Low x2) -7/Lower Caves -7/Lower Caves (discovered 2 exits: *Fac / [*Zio]) -7/Zion -6/Proximity Caves -6/Factory (discovered 4 exits: Fac x3 / *Ext) -6/Extension (discovered 2 exits: *Fac / *Cet) -6/Cetus -6/Archives -6/Hub_04(d) (discovered 3 exits: *Fac x3) -5/Factory (discovered 5 exits: *Fac x4 / [*Upp]) -5/Upper Caves -5/Upper Caves (discovered 2 exits: *Fac / *War) -5/Warlord History --------- Turn | Location | Event 5 | -11/Scrapyard | Discovered new exit (range 16) 54 | -11/Scrapyard | Entered Materials 119 | -10/Materials | Discovered new exit (range 16) 185 | -10/Materials | Entered another Materials area 185 | -9/Materials | Evolved 2 slots: Utility x2 330 | -9/Materials | Build established: Mutant 485 | -9/Materials | Lost 4 parts (2p2n) 592 | -9/Materials | Repaired Imp. Medium Laser 644 | -9/Materials | Discovered new exit (range 7) 654 | -9/Materials | Core integrity fell below 50% 660 | -9/Materials | Entered Storage 739 | -9/Storage | Assisted by bots powering up and referring to "LRC-V3" 1026 | -9/Storage | Build established: Commander-Mutant 1165 | -9/Storage | Lost 6 allies 1206 | -9/Storage | Repaired Med. Laser 1224 | -9/Storage | Identified exit to Materials 1286 | -9/Storage | Learned location of 3 exits from Materials 1337 | -9/Storage | Loaded intel: 1 garrison access location 1344 | -9/Storage | Garrison activated, responded to threat 1379 | -9/Storage | Learned location of 1 exit from Recycling 1413 | -9/Storage | Learned 4 Recycling zone layouts 1438 | -9/Storage | Learned location of 2 exits from Materials 1456 | -9/Storage | Build established: Mutant 1482 | -9/Storage | Repaired Imp. Treads 1515 | -9/Storage | Repaired Imp. Treads 1524 | -9/Storage | Learned location of 3 exits from Materials 1555 | -9/Storage | Entered Materials 1555 | -8/Materials | Accompanied by 1 ally 1555 | -8/Materials | Evolved 2 slots: Power x1, Weapon x1 1556 | -8/Materials | Identified exit to Factory 2196 | -8/Materials | Build established: Tank 2294 | -8/Materials | Entered Factory 2294 | -7/Factory | Evolved 2 slots: Propulsion x1, Utility x1 2677 | -7/Factory | Discovered new exit (range 6) 2712 | -7/Factory | Identified exit to Lower Caves 2773 | -7/Factory | Entered Lower Caves 2854 | -7/Lower Caves | Attracted the attention of an 0b10 checkpoint 3007 | -7/Lower Caves | Identified exit to Lower Caves 3045 | -7/Lower Caves | Encountered a Warlord checkpoint 3245 | -7/Lower Caves | Entered another Lower Caves area 3265 | -7/Lower Caves | Discovered new exit (range 14) 3349 | -7/Lower Caves | Encountered a Warlord checkpoint 3506 | -7/Lower Caves | Learned Factory trap positions 3645 | -7/Lower Caves | Learned Factory terminal intel 3679 | -7/Lower Caves | Spotted B-75 Beast 3768 | -7/Lower Caves | Destroyed B-75 Beast 3774 | -7/Lower Caves | Lost 6 parts (2p1n2u1w) 3870 | -7/Lower Caves | Discovered new exit (range 14) 3975 | -7/Lower Caves | Entered Zion 3988 | -7/Zion | Build established: Gunner 4103 | -7/Zion | Discovered new exit (range 15) 4367 | -7/Zion | Found Prototype Launcher 4528 | -7/Zion | Learned location of Quarantine (-2) 4539 | -7/Zion | Given the Hacking Drone Bay 4672 | -7/Zion | Gained Derelict followers 4791 | -7/Zion | Learned Factory trap positions 4824 | -7/Zion | Acquired unknown access codes intercepted by a Zionite 4857 | -7/Zion | Met Imprinter 4879 | -7/Zion | Imprinted 4881 | -7/Zion | Declared Zion's savior 5039 | -7/Zion | Found Prototype Processor 5039 | -7/Zion | Identified Exp. Melee Analysis Suite 5042 | -7/Zion | Found Prototype Processor 5042 | -7/Zion | Identified Exp. Armor Integrity Analyzer 5046 | -7/Zion | Found Prototype Processor 5046 | -7/Zion | Identified Exp. Core Analyzer 5051 | -7/Zion | Found Prototype Processor 5051 | -7/Zion | Identified Exp. Terrain Scan Processor 5053 | -7/Zion | Identified Rocket Array 5057 | -7/Zion | Found Prototype Hackware 5062 | -7/Zion | Found Prototype Processor 5169 | -7/Zion | Found Prototype Device 5348 | -7/Zion | Entered Proximity Caves 5348 | -6/Proximity Caves | Accompanied by 9 allies 5384 | -6/Proximity Caves | Learned 4 Factory zone layouts 5637 | -6/Proximity Caves | Attracted the attention of an 0b10 base 5671 | -6/Proximity Caves | Lost 4 allies 5718 | -6/Proximity Caves | Learned Factory security intel 5718 | -6/Proximity Caves | Learned Research emergency access door positions 5718 | -6/Proximity Caves | Learned location of 1 exit from Factory 5718 | -6/Proximity Caves | Identified exit to Factory 5767 | -6/Proximity Caves | Entered Factory 5767 | -6/Factory | Accompanied by 1 ally 5767 | -6/Factory | Evolved 2 slots: Utility x2 5768 | -6/Factory | Identified exit to Extension 5769 | -6/Factory | Identified exit to Factory 5771 | -6/Factory | Loaded intel: 94 trap records 5773 | -6/Factory | Loaded intel: 27 terminal locations 5998 | -6/Factory | Build established: Scavenger-Gunner 6024 | -6/Factory | Fabricated Disruptor Cannon (x2) 6209 | -6/Factory | Identified Hacking Drone Bay 6235 | -6/Factory | Retrieved Zion intel report: Prototype Schematics 6427 | -6/Factory | Retrieved Zion intel report: Component Schematics 6428 | -6/Factory | Zion Heavy squad teleported in 6599 | -6/Factory | Build established: Gunner 6665 | -6/Factory | Retrieved Zion intel report: Trap Installations 6701 | -6/Factory | Retrieved Zion intel report: Emergency Access 6752 | -6/Factory | Retrieved Zion intel report: Unaware Schematics 6801 | -6/Factory | Retrieved Zion intel report: Unaware Schematics 6827 | -6/Factory | Retrieved Zion intel report: Component Stockpiles 7006 | -6/Factory | Discovered exit to Factory (range 16) 7016 | -6/Factory | Terminal network hard line cut 7047 | -6/Factory | Fabricated Y-72 Warden? 7454 | -6/Factory | Discovered exit to Factory (range 20) 7719 | -6/Factory | Entered Extension 7719 | -6/Extension | Accompanied by 3 allies 8031 | -6/Extension | Retrieved Zion intel report: Trap Installations 8032 | -6/Extension | Zion Demo squad teleported in 8311 | -6/Extension | Rescued A7 8570 | -6/Extension | Build established: Commander-Gunner 8769 | -6/Extension | Spotted B-75 Beast 8773 | -6/Extension | Allies destroyed B-75 Beast 8782 | -6/Extension | Spotted B-75 Beast 8792 | -6/Extension | Allies destroyed B-75 Beast 8821 | -6/Extension | Lost 3 allies 8868 | -6/Extension | Energy Cycler disabled 8871 | -6/Extension | Rescued a captive Derelict 8871 | -6/Extension | Rescued a captive Derelict 8873 | -6/Extension | Rescued a captive Derelict 8873 | -6/Extension | Rescued a captive Derelict 9060 | -6/Extension | Retrieved Zion intel report: Unaware Analyses 9061 | -6/Extension | Zion Heavy squad teleported in 9119 | -6/Extension | First assault squad dispatched 9209 | -6/Extension | Lost 5 allies 9223 | -6/Extension | Discovered exit to Factory (range 10) 9225 | -6/Extension | Discovered new exit (range 6) 9245 | -6/Extension | Terminal network hard line cut 9294 | -6/Extension | Entered Cetus 9294 | -6/Cetus | Accompanied by 15 allies (A7) 9299 | -6/Cetus | Acquired a Cetus Manufacturing Module code from A7 9315 | -6/Cetus | Spotted Cetus Guard 9315 | -6/Cetus | Spotted Cetus Guard 9319 | -6/Cetus | Destroyed Cetus Guard 9320 | -6/Cetus | Spotted Cetus Guard 9324 | -6/Cetus | Spotted Cetus Guard 9332 | -6/Cetus | Allies destroyed Cetus Guard 9338 | -6/Cetus | Allies destroyed Cetus Guard 9340 | -6/Cetus | Allies destroyed Cetus Guard 9368 | -6/Cetus | Lost 3 allies 9424 | -6/Cetus | Started Cetus Manufacturing Module 9449 | -6/Cetus | Manufactured an Enhanced Grunt 9474 | -6/Cetus | Manufactured an Enhanced Grunt 9489 | -6/Cetus | Escorted A7 to Cetus Mainframe 9499 | -6/Cetus | Manufactured an Enhanced Grunt 9524 | -6/Cetus | Manufactured an Enhanced Grunt 9549 | -6/Cetus | Manufactured an Enhanced Grunt 9594 | -6/Cetus | Discovered new exit (range 16) 9652 | -6/Cetus | Entered Archives 9652 | -6/Archives | Accompanied by 17 allies (A7) 9657 | -6/Archives | Received a hacking code to weaken MAIN.C 9705 | -6/Archives | Found Prototype Protection 9705 | -6/Archives | Identified Zio. Weapon Casing 9713 | -6/Archives | Lost 3 allies 9755 | -6/Archives | Discovered new exit (range 14) 9805 | -6/Archives | Entered Hub_04(d) 9805 | -6/Hub_04(d) | Accompanied by 13 allies 9846 | -6/Hub_04(d) | Discovered exit to Factory (range 20) 9847 | -6/Hub_04(d) | Discovered exit to Factory (range 20) 9876 | -6/Hub_04(d) | Retrieved Zion intel report: Guard Positions 9882 | -6/Hub_04(d) | Found Prototype Device 9883 | -6/Hub_04(d) | Identified Exp. Thermal Shield 9920 | -6/Hub_04(d) | Retrieved Zion intel report: Emergency Access 9933 | -6/Hub_04(d) | Retrieved Zion intel report: Component Schematics 9934 | -6/Hub_04(d) | Zion Trap Resupply teleported in 10422 | -6/Hub_04(d) | Discovered exit to Factory (range 19) 10488 | -6/Hub_04(d) | Zion Heavy squad teleported in 10879 | -6/Hub_04(d) | Retrieved Zion intel report: Active Garrisons 10966 | -6/Hub_04(d) | Lost 4 allies 11172 | -6/Hub_04(d) | Terminal network hard line cut 11205 | -6/Hub_04(d) | First assault squad dispatched 11211 | -6/Hub_04(d) | Network Hub disabled 11223 | -6/Hub_04(d) | Build established: Scavenger-Gunner 11258 | -6/Hub_04(d) | Network Hub disabled 11264 | -6/Hub_04(d) | Entered Factory 11264 | -5/Factory | Evolved 2 slots: Utility x2 11265 | -5/Factory | Loaded intel: 103 trap records 11269 | -5/Factory | Discovered new exit (range 10) 11369 | -5/Factory | Retrieved Zion intel report: Trap Installations 11382 | -5/Factory | Discovered new exit (range 17) 11930 | -5/Factory | Retrieved Zion intel report: Main Access 11930 | -5/Factory | Identified exit to Factory 12180 | -5/Factory | Build established: Scavenger-Tank 12300 | -5/Factory | Cargo convoy interrupted 12302 | -5/Factory | Garrison activated, responded to threat 12348 | -5/Factory | Destroyed 15 combat bots 12354 | -5/Factory | Lost 8 parts (2p3u3w) 12391 | -5/Factory | Zion Fire squad teleported in 12408 | -5/Factory | Core integrity fell below 50% 12425 | -5/Factory | Retrieved Zion intel report: Unaware Analyses 12433 | -5/Factory | Lost 3 allies 12443 | -5/Factory | Lost 10 parts (4n6u) 12458 | -5/Factory | Entered Upper Caves 12458 | -5/Upper Caves | Identified Exp. Hacking Suite 12459 | -5/Upper Caves | Identified Spectral Analyzer 12581 | -5/Upper Caves | Spotted B-75 Beast 12597 | -5/Upper Caves | Build established: Mutant 12602 | -5/Upper Caves | Learned Factory garrison access intel 12641 | -5/Upper Caves | Discovered new exit (range 2) 12642 | -5/Upper Caves | Entered another Upper Caves area 12647 | -5/Upper Caves | Discovered exit to Factory (range 21) 12855 | -5/Upper Caves | Found DCF Scrap (12 items) 12946 | -5/Upper Caves | Learned 4 Factory zone layouts 12946 | -5/Upper Caves | Discovered new exit (range 5) 12956 | -5/Upper Caves | Entered Warlord 13034 | -5/Warlord | System corruption cleaned by Quarantine Array 13152 | -5/Warlord | Build established: Derelict-Gunner 13525 | -5/Warlord | Build established: Derelict-Tank 13652 | -5/Warlord | Found Signal Generator 14041 | -5/Warlord | Warlord's base attacked by MAIN.C 14391 | -5/Warlord | Warlord forces counterattacked 14626 | -5/Warlord | Found Prototype Energy Gun 14630 | -5/Warlord | Found Prototype Energy Gun 14637 | -5/Warlord | Found Prototype Energy Cannon 14716 | -5/Warlord | Warlord base infiltrated, sounded retreat 14825 | -5/Warlord | Spotted Striker 14826 | -5/Warlord | Lost 6 allies 14830 | -5/Warlord | Core integrity fell below 20% 14855 | -5/Warlord | Destroyed Striker 14859 | -5/Warlord | Core destroyed Last Messages --------------- 14852_ Striker overheating. 14852_ Melted Prototype Protection. 14853_ Mak. Ablative Armor melts away. 14853_ H-77 Assassin heat damages Hpw. Shotgun. 14853_ Striker overheating. 14854_ Striker heat damages Prototype Piercing Weapon. 14854_ Striker overheating. 14855_ Penetrated by Slug. 14855_ Striker overheating. 14855_ Melted Impulse Thruster Array. 14855_ Striker critical meltdown. 14855_ H-77 Assassin destroyed. 14856_ Overheating: Energy bleed (-4). 14856_ Penetrated by Slug. 14856_ Archangel 6d destroyed. 14857_ Power failure, Neutrino Core shutdown. 14857_ Spectral Analyzer broken. 14857_ Overheating: Short circuit. 14858_ Power failure, Angular Momentum Engine shutdown. 14859_ Overheating: Core damaged (-100). Map ----- +----------------------------------------------------+ | ????????????????????????????? | | ????????????????????????????? | | ????????????????????????????? | | ????????????????????????????? | | ???????????????########?????? | | ???????????????# #?????? | | ???????????????#""" #?????? | | ???????????????#""" #?????? | | ???????????????#""" #?????? | | ???????????????# #?????? | | ???????????????# #?????? | | ????????###########+###?????? | | ????????# + #???????? | | ????????# # #???????? | | ????????# #^#???????? | | ????????# # ####????? | | ???????###+######## ##???? | | ???##### # ######## #???? | | ???# ##???? | | ???# ###; ;#### #????? | | ???# # # #????? | | ???# m # #????? | | ???#=# g #^ ^ #????? | | ???#h# + ##???? | | ???#=;== % # #???? | | ???#@#=%= # ##???? | | ??##%%#%/ " # #????? | | ??# [%!%/ # ##+###### | | ??# ==!* * ## # | | ?? !=! * #%##### # | | ?? !%! #;## =% ### # | | ?###=# # | | ???#!# + | | ???# ###### ! ###% # | | ???#m#??####;##### # | | ???# #??# ![ ## # | | ???# #??# ## # | | ???# #??# ## ######### | | ???# #??# ## #???????? | | ???# #??# ## #???????? | | ???# #??# ## #???????? | | ???# #??# ## #???????? | | ???# #??# + #???????? | | ???# #??# ##+########?? | | ???# #??# # #?# | | ???# #??# # """ """ #?# | | ???#+############ """ """ #?# | | ???# #??# """ """ #?# | | ???# #??# """ """ #?# | | ???# #??# """ """ ### | +----------------------------------------------------+ Best States ------------- Heat Dissipation 67 Coolant Potential 50 Energy Generation 41 Energy Capacity 1150 Matter Stores 300 Matter Capacity 300 Sight Range 24 Terrain Scan Range 20 Terrain Scan Density 1010 Jamming Range 12 Armor Coverage 525 Resistance: TH 30 Weapon Shielding 100 Evasion (%) 50 Target Analysis 8 Core Analysis 8 Armor Integrity Analysis 50 Recoil Reduction 3 Particle Charging 25 Offensive Hacking 16 Authchip Count 1 Item Schematics ----------------- System Restoration Module | -7/Factory | Scanalyzed Weapon Cycler | -7/Zion | Archive Enh. Optical Array | -7/Zion | Archive Adv. ECM Suite | -7/Zion | Archive Adv. Melee Analysis Suite | -7/Zion | Archive Plasma Cannon | -7/Zion | Archive Imp. Field Recycling Unit | -7/Zion | Archive Angular Momentum Engine | -7/Zion | Archive Lgt. Angular Momentum Engine | -7/Zion | Archive Adv. Recoil Stabilizer | -7/Zion | Archive Gatling Laser | -7/Zion | Archive Flexi-carbon Leg | -7/Zion | Archive Gravmag System | -7/Zion | Archive Phase Cannon | -7/Zion | Archive Coolant Injector | -7/Zion | Archive Hvy. Treads | -7/Zion | Archive Impact Mace | -6/Factory | Z-intel Biomechanical Wings | -6/Factory | Z-intel Imp. Heavy Machine Gun | -6/Factory | Z-intel Imp. Cesium-ion Thruster | -6/Factory | Z-intel Cld. Airjet | -6/Factory | Z-intel F-cell Engine | -6/Factory | Z-intel Prc. Assault Rifle | -6/Factory | Z-intel Thermal Defense Suite | -6/Factory | Z-intel Adv. Beam Rifle | -6/Factory | Z-intel Cld. Plasma Cannon | -6/Factory | Z-intel Cld. Cesium-ion Thruster | -6/Factory | Z-intel Multireflex Exoskeleton | -6/Factory | Z-intel Spear | -6/Factory | Z-intel Imp. Core Shielding | -6/Factory | Z-intel Imp. Titanium Leg | -6/Factory | Z-intel EM Disruption Field | -6/Factory | Z-intel Hpw. Shotgun | -6/Factory | Z-intel Great Maul | -6/Factory | Z-intel Imp. System Shield | -6/Factory | Z-intel Med. Storage Unit | -6/Factory | Z-intel Power Shielding | -6/Factory | Z-intel Adv. Heat Sink | -6/Factory | Z-intel Sml. Storage Unit | -6/Factory | Z-intel Fission Core | -6/Factory | Z-intel Hvy. Flail | -6/Hub_04(d) | Z-intel Targeting Computer | -6/Hub_04(d) | Z-intel Imp. Actuator Array | -6/Hub_04(d) | Z-intel Weight Redist. System | -6/Hub_04(d) | Z-intel Microactuators | -6/Hub_04(d) | Z-intel Adv. Signal Interpreter | -6/Hub_04(d) | Z-intel Com. Battery | -6/Hub_04(d) | Z-intel Med. Matter Pod | -6/Hub_04(d) | Z-intel Magnetic Acceleration Cannon | -6/Hub_04(d) | Z-intel Imp. Surge Thruster | -6/Hub_04(d) | Z-intel Chainsword | -6/Hub_04(d) | Z-intel Imp. Shield Generator | -6/Hub_04(d) | Z-intel Adv. Terrain Scan Processor | -6/Hub_04(d) | Z-intel Robot Schematics ------------------ T-07 Excavator | -7/Zion | Archive G-47 Trooper | -7/Zion | Archive Y-72 Warden | -7/Zion | Archive X-62 Marksman | -6/Factory | Z-intel H-66 Slayer | -6/Factory | Z-intel R-10 Processor | -6/Factory | Z-intel L-41 Fighter | -6/Factory | Z-intel K-01 Serf | -6/Factory | Z-intel G-50 Soldier | -6/Factory | Z-intel Fabricated ------------ Disruptor Cannon | x2 | -6/Factory | Preloaded Y-72 Warden | x2 | -6/Factory | Authchip Repaired ---------- Imp. Medium Laser | 7% | -9/Materials Med. Laser | 52% | -9/Storage Imp. Treads | 65% | -9/Storage Imp. Treads | 69% | -9/Storage Alien Tech Used ----------------- None Achievements -------------- None Challenges ------------ None Game ------ Seed PartitionTitaniumTendrils Manual? 0 Play Time 03:24:44 Cumulative 325.8 hours Start 2025.05.27 @ 16:07:22 End 2025.05.28 @ 13:24:57 Sessions 5 Manual Loads 0 Difficulty Rogue Special Mode None Game No. 156 Rogue 113 Adventurer 43 Explorer 0 Win Type - Total 6 Types 4/0/1/0/0/0/0/1/0/0 Lore% 84 Gallery% 72 Achievement% 65 Wizard Run 0 Options --------- Layout 0 ASCII 0 Keyboard 0 Movement Numpad Keybinds 0 Fullscreen 1 Font 24/Smallcaps Map View 76x50 Zoom Use 0% Tactical HUD 1 Map Filters NONE Filters NONE Steam 1 RUN: 4debab09-70a1-422e-98fb-33fbfe00fc33